bitfinex/quotes_BTCUSD_20240607
["timestamp","ask_amount","ask_price","bid_price","bid_amount"]
[1717725699586,3.21752565,70862.0,70861.0,0.2528]
[1717725703606,3.02175693,70862.0,70861.0,0.2528]
[1717725703806,3.21752565,70862.0,70861.0,0.2528]
[1717725704569,3.21767454,70862.0,70861.0,0.2528]
[1717725705173,3.02190582,70862.0,70861.0,0.2528]
[1717725705390,3.07480861,70862.0,70861.0,0.2528]
[1717725705593,2.87903989,70862.0,70861.0,0.2528]
[1717725706039,2.77903989,70862.0,70861.0,0.2528]
[1717725706233,2.87903989,70862.0,70861.0,0.2528]
[1717725706622,3.07525144,70862.0,70861.0,0.2528]
[1717725707238,3.21812007,70862.0,70861.0,0.2528]
[1717725711410,1.61566326,70862.0,70861.0,0.3133]
[1717725711643,0.50661237,70862.0,70861.0,0.31753128]
[1717725711849,0.50661237,70862.0,70861.0,0.3133]
[1717725711850,0.03383028,70862.0,70861.0,0.3133]
[1717725712269,0.07613252,70862.0,70861.0,0.3133]
[1717725712479,0.07613252,70862.0,70861.0,0.31753128]
[1717725712691,0.06413252,70862.0,70861.0,0.31753128]
[1717725713179,0.07513252,70862.0,70861.0,0.31753128]
[1717725713682,0.07513252,70862.0,70861.0,0.3133]
[1717725713683,0.00983028,70862.0,70861.0,0.3133]
[1717725713900,0.01083028,70862.0,70861.0,0.31853128]
[1717725714107,0.01183028,70862.0,70861.0,0.3143]
[1717725714322,0.01083028,70862.0,70861.0,0.3143]
[1717725714748,0.01083028,70862.0,70861.0,0.3133]
[1717725714961,0.01083028,70862.0,70861.0,0.2528]
[1717725715136,0.01083028,70862.0,70861.0,0.3133]
[1717725715814,0.00983028,70862.0,70861.0,0.3133]
[1717725716230,0.01083028,70862.0,70861.0,0.3143]
[1717725716668,0.01083028,70862.0,70861.0,0.3133]
[1717725716894,0.00983028,70862.0,70861.0,0.31847728]
[1717725717139,0.01083028,70862.0,70861.0,0.31947728]
[1717725717362,0.01183028,70862.0,70861.0,0.315246]
[1717725717588,0.01083028,70862.0,70861.0,0.315246]
[1717725718013,0.01183028,70862.0,70861.0,0.315246]
[1717725720421,0.01183028,70862.0,70861.0,0.31947728]
[1717725720634,0.01183028,70862.0,70861.0,0.33947728]
[1717725720853,0.002,70862.0,70861.0,0.33947728]
[1717725721060,0.002,70862.0,70861.0,0.62899828]
[1717725721280,0.00983028,70868.0,70867.0,0.26333128]
[1717725721527,0.00983028,70868.0,70867.0,0.32383128]
[1717725723749,0.00983028,70869.0,70867.0,0.46803928]
[1717725723971,0.00983028,70869.0,70868.0,0.33257447]
[1717725724945,0.00983028,70870.0,70868.0,0.23148147]
[1717725725158,0.002,70869.0,70868.0,0.46558147]
[1717725725386,0.001,70869.0,70868.0,0.46558147]
[1717725725597,0.01069028,70871.0,70870.0,0.26053128]
[1717725725807,0.00086,70871.0,70870.0,0.26053128]
[1717725726439,0.00086,70871.0,70870.0,0.40163428]
[1717725726657,0.01069028,70871.0,70870.0,0.40163428]
[1717725727310,0.00086,70871.0,70870.0,0.40163428]
[1717725727522,0.00186,70871.0,70870.0,0.40263428]
[1717725728248,0.00186,70871.0,70870.0,0.41163428]
[1717725728696,0.00286,70871.0,70870.0,0.41263428]
[1717725728900,0.00186,70871.0,70870.0,0.40263428]
[1717725729113,0.00286,70871.0,70870.0,0.41263428]
[1717725730627,0.00186,70871.0,70870.0,0.41163428]
[1717725730839,0.00286,70871.0,70870.0,0.41163428]
[1717725734797,0.00286,70871.0,70870.0,0.25053128]
[1717725734798,0.01269028,70871.0,70870.0,0.25053128]
[1717725734999,0.01269028,70871.0,70870.0,0.27053128]
[1717725738533,0.00286,70871.0,70870.0,0.41163428]
[1717725741260,0.00286,70871.0,70870.0,0.84224028]
[1717725741479,0.00286,70871.0,70870.0,1.14495961]
[1717725745435,0.00286,70871.0,70870.0,1.13495961]
[1717725746808,0.00286,70871.0,70870.0,1.14495961]
[1717725749619,0.00286,70871.0,70870.0,1.13495961]
[1717725750082,0.00286,70871.0,70870.0,1.14495961]
[1717725750290,0.00086,70871.0,70870.0,1.13495961]
[1717725750502,0.00286,70871.0,70870.0,1.14395961]
[1717725751792,0.09330928,70892.0,70885.0,0.00423128]
[1717725752005,0.14441893,70891.0,70886.0,0.00423128]
[1717725752223,0.14441893,70891.0,70890.0,0.0605]
[1717725753975,0.14441893,70891.0,70890.0,0.0615]
[1717725755339,0.11754282,70893.0,70890.0,0.0615]
[1717725755562,0.20426823,70895.0,70891.0,0.00423128]
[1717725755563,0.18319682,70895.0,70891.0,0.00423128]
[1717725755778,0.14441893,70894.0,70891.0,0.08283128]
[1717725755992,0.06321423,70898.0,70893.0,0.23013128]
[1717725755993,0.18318982,70898.0,70893.0,0.23013128]
[1717725756216,0.14441893,70897.0,70893.0,0.23013128]
[1717725756443,0.04214282,70896.0,70893.0,0.1654]
[1717725756654,0.141047,70898.0,70896.0,0.0605]
[1717725757409,0.004,70897.0,70896.0,0.0605]
[1717725759509,0.18318982,70898.0,70896.0,0.0605]
[1717725759942,0.003,70897.0,70896.0,0.0605]
[1717725760775,0.18818982,70898.0,70896.0,0.0605]
[1717725761063,0.18318982,70898.0,70896.0,0.0605]
[1717725761243,0.18818982,70898.0,70896.0,0.0605]
[1717725761403,0.18318982,70898.0,70896.0,0.0605]
[1717725761856,0.003,70897.0,70896.0,0.0605]
[1717725762069,0.003,70897.0,70896.0,0.06473128]
[1717725762470,0.04914282,70897.0,70896.0,0.06473128]
[1717725762695,0.007,70897.0,70896.0,0.06473128]
[1717725762901,0.007,70897.0,70896.0,0.0605]
[1717725763323,0.04914282,70897.0,70896.0,0.06473128]
[1717725763710,0.04614282,70897.0,70896.0,0.0605]
[1717725764496,0.04614282,70897.0,70896.0,0.06473128]
[1717725764659,0.04914282,70897.0,70896.0,0.06473128]
[1717725765261,0.007,70897.0,70896.0,0.06473128]
[1717725765470,0.04921742,70897.0,70896.0,0.06473128]
[1717725765900,0.007,70897.0,70896.0,0.06473128]
[1717725766149,0.007,70897.0,70896.0,0.08473128]
[1717725766993,0.004,70897.0,70896.0,0.16133128]
[1717725767203,0.04221742,70899.0,70897.0,0.00423128]
[1717725767419,0.04221742,70899.0,70896.0,0.1401]
[1717725767831,0.04221742,70899.0,70896.0,0.14433128]
[1717725768258,0.04221742,70899.0,70896.0,0.14233128]
[1717725768389,0.04221742,70899.0,70896.0,0.1381]
[1717725768606,0.04321742,70899.0,70896.0,0.1371]
[1717725768817,0.04221742,70899.0,70896.0,0.14133128]
[1717725769026,0.04321742,70899.0,70896.0,0.1371]
[1717725769439,0.04221742,70899.0,70896.0,0.1371]
[1717725769850,0.04321742,70899.0,70896.0,0.1371]
[1717725770059,0.2349,70898.0,70890.0,0.1631]
[1717725770271,0.27711742,70898.0,70897.0,0.0605]
[1717725771306,0.2349,70898.0,70897.0,0.0605]
[1717725774976,0.0826,70898.0,70897.0,0.0605]
[1717725775363,0.14592499,70898.0,70897.0,0.0605]
[1717725780178,0.0826,70898.0,70897.0,0.0605]
[1717725781517,0.08443332,70899.0,70898.0,0.2346]
[1717725781737,0.06335748,70899.0,70898.0,0.2346]
[1717725781951,0.06335748,70900.0,70898.0,0.2346]
[1717725782156,0.04223693,70899.0,70898.0,0.2346]
[1717725782380,0.04223693,70899.0,70898.0,0.2951]
[1717725782790,0.04223693,70899.0,70898.0,0.29933128]
[1717725782978,0.04323693,70899.0,70898.0,0.2951]
[1717725783204,0.04323693,70899.0,70898.0,0.29933128]
[1717725783634,0.001,70899.0,70898.0,0.29933128]
[1717725783884,0.04324461,70899.0,70898.0,0.30133128]
[1717725784103,0.04224461,70899.0,70898.0,0.32133128]
[1717725784334,0.04224461,70899.0,70898.0,0.32433128]
[1717725784547,0.04224461,70899.0,70898.0,0.3001]
[1717725785993,0.04224461,70899.0,70898.0,0.441147]
[1717725786381,0.04841165,70899.0,70898.0,0.441147]
[1717725786805,0.04841165,70899.0,70898.0,0.44537828]
[1717725787010,0.04224461,70899.0,70898.0,0.44537828]
[1717725787215,0.04224461,70899.0,70898.0,0.46537828]
[1717725787638,0.04224461,70899.0,70898.0,0.380647]
[1717725787836,0.04224461,70899.0,70898.0,0.441147]
[1717725789108,0.04224461,70899.0,70898.0,0.380647]
[1717725789317,0.04224461,70899.0,70898.0,0.285947]
[1717725789547,0.04224461,70899.0,70898.0,0.206547]
[1717725789749,0.04841165,70899.0,70898.0,0.206547]
[1717725790371,0.00616704,70899.0,70898.0,0.206547]
[1717725790577,0.04842055,70899.0,70898.0,0.206547]
[1717725791199,0.00616704,70899.0,70898.0,0.206547]
[1717725791672,0.00616704,70899.0,70898.0,0.146047]
[1717725791883,0.00616704,70899.0,70898.0,0.206547]
[1717725795761,0.00616704,70899.0,70898.0,0.146047]
[1717725795980,0.00616704,70899.0,70898.0,0.206547]
[1717725796402,0.06952452,70899.0,70898.0,0.206547]
[1717725797854,0.06952452,70899.0,70898.0,0.146047]
[1717725798062,0.06952452,70899.0,70898.0,0.206547]
[1717725799455,0.00616704,70899.0,70898.0,0.206547]
[1717725800287,0.31876021,70899.0,70898.0,0.005]
[1717725800683,0.40319353,70899.0,70898.0,0.0655]
[1717725800889,0.31876021,70899.0,70898.0,0.005]
[1717725801214,0.55116021,70899.0,70898.0,0.0655]
[1717725801343,0.54499317,70899.0,70898.0,0.0655]
[1717725806390,0.31259317,70899.0,70898.0,0.0655]
[1717725808915,0.41834644,70899.0,70898.0,0.0655]
[1717725811538,0.41834644,70899.0,70898.0,0.302]
[1717725817048,0.31259317,70899.0,70898.0,0.302]
[1717725817450,0.41835499,70899.0,70898.0,0.302]
[1717725817875,0.31259317,70899.0,70898.0,0.302]
[1717725818124,0.41835499,70899.0,70898.0,0.302]
[1717725818294,0.31259317,70899.0,70898.0,0.302]
[1717725821450,0.31259317,70899.0,70898.0,0.005]
[1717725821691,0.31259317,70899.0,70898.0,0.0655]
[1717725829696,0.31259317,70899.0,70898.0,0.3047]
[1717725834931,0.31259317,70899.0,70898.0,0.0655]
[1717725835177,0.31259317,70899.0,70898.0,0.44788796]
[1717725836793,0.31259317,70899.0,70898.0,0.47211924]
[1717725838752,0.31259317,70899.0,70898.0,0.44788796]
[1717725841711,0.31259317,70899.0,70898.0,0.47211924]
[1717725841934,0.39721958,70899.0,70898.0,0.47211924]
[1717725842440,0.39721958,70899.0,70898.0,0.44788796]
[1717725842654,0.39721958,70899.0,70898.0,0.442247]
[1717725844023,0.39721958,70899.0,70898.0,0.381747]
[1717725844252,0.39721958,70899.0,70898.0,0.442247]
[1717725846062,0.39721958,70899.0,70898.0,0.381747]
[1717725846300,0.39721958,70899.0,70898.0,0.442247]
[1717725846901,0.31259317,70899.0,70898.0,0.442247]
[1717725847315,0.39721384,70899.0,70898.0,0.442247]
[1717725847542,0.31259317,70899.0,70898.0,0.442247]
[1717725848195,0.31345317,70899.0,70898.0,0.442247]
[1717725850507,0.00086,70899.0,70898.0,0.442247]
[1717725850712,0.39807248,70899.0,70898.0,0.442247]
[1717725850937,0.3134508,70899.0,70898.0,0.442247]
[1717725853634,0.3134508,70899.0,70898.0,0.46647828]
[1717725854063,0.3134508,70899.0,70898.0,0.442247]
[1717725855427,0.3134508,70899.0,70898.0,0.3012]
[1717725855833,0.00086,70899.0,70898.0,0.3012]
[1717725856083,0.31345114,70899.0,70898.0,0.32543128]
[1717725856289,0.31345114,70899.0,70898.0,0.3012]
[1717725857349,0.31345113,70899.0,70898.0,0.3012]
[1717725858629,0.31345113,70899.0,70898.0,0.32543128]
[1717725859574,0.31345113,70899.0,70898.0,0.3012]
[1717725860014,0.31345113,70899.0,70898.0,0.32543128]
[1717725861931,0.30845113,70899.0,70898.0,0.32543128]
[1717725862132,0.30845113,70899.0,70898.0,0.3012]
[1717725862339,0.10578025,70900.0,70898.0,0.3012]
[1717725864244,0.10578083,70900.0,70898.0,0.2962]
[1717725864444,0.10578083,70900.0,70898.0,0.2982]
[1717725864651,0.10578083,70900.0,70898.0,0.2992]
[1717725865415,0.10578083,70900.0,70898.0,0.2982]
[1717725865757,0.10578083,70900.0,70898.0,0.2962]
[1717725865961,0.10578083,70900.0,70898.0,0.2992]
[1717725866103,0.10578083,70900.0,70898.0,0.3032]
[1717725870423,0.10578083,70900.0,70898.0,0.007]
[1717725870630,0.2374,70899.0,70898.0,0.007]
[1717725870834,0.2374,70899.0,70898.0,0.0675]
[1717725871728,0.2374,70899.0,70898.0,0.0645]
[1717725871894,0.34318083,70899.0,70898.0,0.0655]
[1717725872364,0.34418083,70899.0,70898.0,0.0715]
[1717725874781,0.2384,70899.0,70898.0,0.0715]
[1717725876322,0.2381,70899.0,70898.0,0.0715]
[1717725877089,0.55070698,70899.0,70898.0,0.0715]
[1717725880913,0.55070698,70899.0,70898.0,0.072446]
[1717725881101,0.55156698,70899.0,70898.0,0.072446]
[1717725886168,0.55156698,70899.0,70898.0,0.011946]
[1717725886401,0.5515777,70899.0,70898.0,0.072446]
[1717725887521,0.5515777,70899.0,70898.0,0.011946]
[1717725887746,0.6926227,70899.0,70898.0,0.072446]
[1717725887964,0.69262207,70899.0,70898.0,0.011946]
[1717725888432,0.85278326,70899.0,70898.0,0.011946]
[1717725889329,0.7258668,70899.0,70898.0,0.011946]
[1717725890007,0.69262207,70899.0,70898.0,0.011946]
[1717725890428,0.72566929,70899.0,70898.0,0.011946]
[1717725891327,0.69262207,70899.0,70898.0,0.011946]
[1717725894705,0.69264262,70899.0,70898.0,0.011946]
[1717725899389,0.69264118,70899.0,70898.0,0.011946]
[1717725900257,0.59996011,70899.0,70898.0,0.011946]
[1717725900428,1.15275699,70899.0,70898.0,0.011946]
[1717725900636,1.56168853,70899.0,70898.0,0.011946]
[1717725900844,1.56168853,70899.0,70892.0,0.000946]
[1717725900845,0.58282572,70893.0,70892.0,0.000946]
[1717725901035,1.4718498,70893.0,70892.0,0.000946]
[1717725901241,1.03235965,70893.0,70892.0,0.000946]
[1717725901439,1.89569281,70893.0,70892.0,0.000946]
[1717725901664,2.04081068,70893.0,70892.0,0.000946]
[1717725901868,1.89569281,70893.0,70892.0,0.000946]
[1717725902038,2.27783782,70893.0,70892.0,0.000946]
[1717725902455,2.35237646,70893.0,70892.0,0.000946]
[1717725902704,2.69760827,70893.0,70892.0,0.000946]
[1717725902859,2.69960827,70893.0,70892.0,0.000946]
[1717725903059,2.69960827,70893.0,70884.0,0.4681]
[1717725903060,0.86498872,70885.0,70884.0,0.4681]
[1717725903342,1.45801159,70885.0,70884.0,0.4681]
[1717725903948,1.89577082,70885.0,70884.0,0.4681]
[1717725904167,1.89577082,70885.0,70872.0,0.4681]
[1717725904168,0.387097,70873.0,70872.0,0.4681]
[1717725904376,0.141099,70872.0,70869.0,0.0605]
[1717725905876,0.142099,70872.0,70869.0,0.0675]
[1717725906252,0.142099,70872.0,70871.0,0.0605]
[1717725906855,0.143099,70872.0,70871.0,0.0605]
[1717725907435,0.142099,70872.0,70871.0,0.0605]
[1717725907630,0.143099,70872.0,70871.0,0.0675]
[1717725907859,0.142099,70872.0,70871.0,0.0675]
[1717725908279,0.143099,70872.0,70871.0,0.0695]
[1717725916542,0.143099,70872.0,70871.0,0.09373128]
[1717725916762,0.002,70872.0,70871.0,0.33533128]
[1717725926255,0.002,70872.0,70871.0,0.27483128]
[1717725926496,0.002,70872.0,70871.0,0.33533128]
[1717725929139,0.002,70872.0,70871.0,0.3111]
[1717725929360,0.002,70872.0,70871.0,0.31533128]
[1717725929579,0.002,70872.0,70871.0,0.3111]
[1717725930439,0.002,70872.0,70871.0,0.009]
[1717725930648,0.002,70872.0,70871.0,0.0695]
[1717725931101,0.002,70872.0,70871.0,0.009]
[1717725931312,0.002,70872.0,70871.0,0.0695]
[1717725937727,0.2416,70872.0,70871.0,0.009]
[1717725937928,0.2416,70872.0,70871.0,0.0695]
[1717725938360,0.30488557,70872.0,70871.0,0.0695]
[1717725940164,0.2416,70872.0,70871.0,0.0695]
[1717725941220,0.55434233,70872.0,70871.0,0.0695]
[1717725942337,0.63872309,70872.0,70871.0,0.0695]
[1717725943112,0.65981829,70872.0,70871.0,0.0695]
[1717725943514,0.94533622,70872.0,70871.0,0.009]
[1717725943775,0.83986026,70872.0,70871.0,0.009]
[1717725945080,0.83986926,70872.0,70871.0,0.009]
[1717725946462,0.83986926,70872.0,70871.0,0.0695]
[1717725946886,0.68116926,70872.0,70871.0,0.0695]
[1717725948295,0.68116926,70872.0,70871.0,0.009946]
[1717725951497,0.60026926,70872.0,70871.0,0.009946]
[1717725957386,0.60026709,70872.0,70871.0,0.009946]
[1717725958855,0.28751793,70872.0,70871.0,0.009946]
[1717725959010,0.60026707,70872.0,70871.0,0.009946]
[1717725963553,0.63380018,70872.0,70871.0,0.009946]
[1717725963803,0.63380018,70872.0,70871.0,0.03417728]
[1717725964012,0.60026707,70872.0,70871.0,0.303446]
[1717725965112,0.60026707,70872.0,70871.0,0.150146]
[1717725965339,0.60026707,70872.0,70871.0,0.32707728]
[1717725965760,0.60026707,70872.0,70871.0,0.30707728]
[1717725965993,0.60026707,70872.0,70871.0,0.32707728]
[1717725966683,0.60026707,70872.0,70871.0,0.302846]
[1717725967458,0.60026707,70872.0,70871.0,0.32707728]
[1717725967617,0.60026707,70872.0,70871.0,0.302846]
[1717725967851,0.60026707,70872.0,70871.0,0.30707728]
[1717725968065,0.60026707,70872.0,70871.0,0.302846]
[1717725973828,0.60026707,70872.0,70871.0,0.30707728]
[1717725974038,0.60026707,70872.0,70871.0,0.302846]
[1717725974448,0.60026707,70872.0,70871.0,0.30707728]
[1717725974654,0.60026076,70872.0,70871.0,0.302846]
[1717725974864,0.60026076,70872.0,70871.0,0.30707728]
[1717725975483,0.60026076,70872.0,70871.0,0.242346]
[1717725981947,0.60026076,70872.0,70871.0,0.24657728]
[1717725982382,0.60026076,70872.0,70871.0,0.242346]
[1717725982588,0.60026076,70872.0,70871.0,0.26657728]
[1717725983228,0.28751793,70872.0,70871.0,0.26657728]
[1717725983443,0.60026071,70872.0,70871.0,0.26657728]
[1717725983905,0.31474278,70872.0,70871.0,0.242346]
[1717725984069,0.31474278,70872.0,70871.0,0.26657728]
[1717725984283,0.42058389,70872.0,70871.0,0.26657728]
[1717725984619,0.31474278,70872.0,70871.0,0.26657728]
[1717725985240,0.39939443,70872.0,70871.0,0.26657728]
[1717725985663,0.31474278,70872.0,70871.0,0.26657728]
[1717725986264,0.39938371,70872.0,70871.0,0.26657728]
[1717725988132,0.31474278,70872.0,70871.0,0.26657728]
[1717725990241,0.39938371,70872.0,70871.0,0.242346]
[1717725990449,0.42058389,70872.0,70871.0,0.242346]
[1717725990663,0.42058389,70872.0,70871.0,0.302846]
[1717725990871,0.31474278,70872.0,70871.0,0.150146]
[1717725991132,0.31474278,70872.0,70871.0,0.009946]
[1717725991345,0.83706071,70872.0,70871.0,0.009946]
[1717725998289,0.83706588,70872.0,70871.0,0.009946]
[1717726000547,0.68036588,70872.0,70871.0,0.009946]
[1717726008017,0.68036633,70872.0,70871.0,0.009946]
[1717726009769,0.60026633,70872.0,70871.0,0.009946]
[1717726012622,0.60026634,70872.0,70871.0,0.009946]
[1717726013502,0.59784304,70872.0,70871.0,0.009946]
[1717726015655,0.59784304,70872.0,70871.0,0.070446]
[1717726017569,0.59784287,70872.0,70871.0,0.070446]
[1717726019868,0.597843,70872.0,70871.0,0.070446]
[1717726020042,0.597843,70872.0,70871.0,0.009946]
[1717726023014,0.597843,70872.0,70871.0,0.03417728]
[1717726023234,0.597843,70872.0,70871.0,0.009946]
[1717726023655,0.597843,70872.0,70871.0,0.070446]
[1717726027095,0.597843,70872.0,70871.0,0.009946]
[1717726034341,0.72479053,70872.0,70871.0,0.009946]
[1717726035559,0.597843,70872.0,70871.0,0.009946]
[1717726037577,0.59784394,70872.0,70871.0,0.009946]
[1717726038182,0.67474394,70872.0,70871.0,0.009946]
[1717726039584,0.59784394,70872.0,70871.0,0.009946]
[1717726039827,0.91673553,70872.0,70871.0,0.009946]
[1717726039964,1.52053984,70872.0,70871.0,0.009946]
[1717726040167,1.0826908,70872.0,70871.0,0.009946]
[1717726040429,0.93973553,70872.0,70871.0,0.009946]
[1717726042921,0.94059553,70872.0,70871.0,0.009946]
[1717726044713,0.85490394,70872.0,70871.0,0.009946]
[1717726048596,0.8549199,70872.0,70871.0,0.009946]
[1717726056277,0.7041199,70872.0,70871.0,0.009946]
[1717726058903,0.141103,70870.0,70869.0,0.000892]
[1717726059105,0.5982872,70870.0,70869.0,0.000892]
[1717726060670,0.5992872,70870.0,70869.0,0.008892]
[1717726061324,0.6002872,70870.0,70869.0,0.017892]
[1717726070699,0.68294217,70870.0,70869.0,0.017892]
[1717726070938,0.68294218,70870.0,70869.0,0.017892]
[1717726072208,0.68294239,70870.0,70869.0,0.017892]
[1717726072873,0.74014497,70870.0,70869.0,0.017892]
[1717726073283,0.60028741,70870.0,70869.0,0.017892]
[1717726073754,0.60028741,70870.0,70869.0,0.263292]
[1717726077208,0.60028741,70870.0,70869.0,0.26752328]
[1717726077452,0.60028741,70870.0,70869.0,0.28552328]
[1717726077453,0.45586848,70870.0,70869.0,0.28552328]
[1717726080066,0.45584846,70870.0,70869.0,0.28552328]
[1717726080697,0.45584845,70870.0,70869.0,0.28552328]
[1717726081120,0.45584845,70870.0,70869.0,0.26552328]
[1717726081346,0.45584845,70870.0,70869.0,0.28552328]
[1717726082198,0.45584845,70870.0,70869.0,0.26552328]
[1717726082406,0.45584845,70870.0,70869.0,0.261292]
[1717726082626,0.45584845,70870.0,70869.0,0.28552328]
[1717726083714,0.45584845,70870.0,70869.0,0.321792]
[1717726083939,0.45584845,70870.0,70869.0,0.261292]
[1717726084165,0.45584845,70870.0,70869.0,0.321792]
[1717726085692,0.45584845,70870.0,70869.0,0.32602328]
[1717726085920,0.45584845,70870.0,70869.0,0.34602328]
[1717726086344,0.45584845,70870.0,70869.0,0.32602328]
[1717726087185,0.45584845,70870.0,70869.0,0.321792]
[1717726087800,0.45584845,70870.0,70869.0,0.34602328]
[1717726088005,0.45584845,70870.0,70869.0,0.321792]
[1717726088805,0.45584845,70870.0,70869.0,0.31493818]
[1717726089207,0.45585516,70870.0,70869.0,0.31493818]
[1717726090436,0.45585516,70870.0,70869.0,0.25443818]
[1717726090660,0.143103,70870.0,70869.0,0.31493818]
[1717726090870,0.45585517,70870.0,70869.0,0.31493818]
[1717726095164,0.45585517,70870.0,70869.0,0.25443818]
[1717726095386,0.45585517,70870.0,70869.0,0.31493818]
[1717726095680,0.45585517,70870.0,70869.0,0.25443818]
[1717726095886,0.45585517,70870.0,70869.0,0.31493818]
[1717726100534,0.45585517,70870.0,70869.0,0.27866946]
[1717726100751,0.45585517,70870.0,70869.0,0.25443818]
[1717726102066,0.45585517,70870.0,70869.0,0.27866946]
[1717726103312,0.49030727,70870.0,70869.0,0.27866946]
[1717726103729,0.45585517,70870.0,70869.0,0.25866946]
[1717726103929,0.49034183,70870.0,70869.0,0.25443818]
[1717726104347,0.45585517,70870.0,70869.0,0.27866946]
[1717726104489,0.45585517,70870.0,70869.0,0.25866946]
[1717726104898,0.45585517,70870.0,70869.0,0.27866946]
[1717726104899,0.45585617,70870.0,70869.0,0.27866946]
[1717726105099,0.4903198,70870.0,70869.0,0.27866946]
[1717726105998,0.31475317,70870.0,70869.0,0.33766946]
[1717726106199,0.31475317,70870.0,70869.0,0.33488038]
[1717726106331,0.39940182,70870.0,70869.0,0.33488038]
[1717726106731,0.31475317,70870.0,70869.0,0.33582638]
[1717726106948,0.31561317,70870.0,70869.0,0.33582638]
[1717726107142,0.06634477,70870.0,70869.0,0.33582638]
[1717726107753,0.00286,70870.0,70869.0,0.33582638]
[1717726108751,0.00286,70870.0,70869.0,0.34582638]
[1717726108982,0.04516732,70870.0,70869.0,0.34582638]
[1717726110052,0.0451608,70870.0,70869.0,0.34582638]
[1717726110436,0.00286,70870.0,70869.0,0.48693138]
[1717726114334,0.00286,70870.0,70869.0,0.47693138]
[1717726115151,0.00286,70870.0,70869.0,0.4527001]
[1717726116048,0.00286,70870.0,70869.0,0.27532638]
[1717726116255,0.00286,70870.0,70869.0,0.33582638]
[1717726116845,0.06627961,70870.0,70869.0,0.33582638]
[1717726117051,0.00286,70870.0,70869.0,0.33582638]
[1717726117257,0.06627998,70870.0,70869.0,0.33582638]
[1717726118360,0.00286,70870.0,70869.0,0.33582638]
[1717726118951,0.06628198,70870.0,70869.0,0.33582638]
[1717726119152,0.00286,70870.0,70869.0,0.33582638]
[1717726119328,0.06628227,70870.0,70869.0,0.33582638]
[1717726122314,0.00286,70870.0,70869.0,0.33582638]
[1717726122513,0.06628791,70870.0,70869.0,0.33582638]
[1717726122895,0.00286,70870.0,70869.0,0.33582638]
[1717726124708,0.00286,70870.0,70869.0,0.3115951]
[1717726124915,0.00286,70870.0,70869.0,0.33582638]
[1717726126978,0.00286,70870.0,70869.0,0.34582638]
[1717726127199,0.00286,70870.0,70869.0,0.48693138]
[1717726129268,0.00286,70870.0,70869.0,0.47693138]
[1717726130898,0.00286,70870.0,70869.0,0.48693138]
[1717726136491,0.00286,70870.0,70869.0,0.47693138]
[1717726137380,0.00286,70870.0,70869.0,0.03342638]
[1717726137610,0.00286,70870.0,70869.0,0.0696951]
[1717726137847,0.04513417,70870.0,70869.0,0.0696951]
[1717726138075,0.69018034,70870.0,70869.0,0.01342638]
[1717726138299,0.79586578,70870.0,70869.0,0.0696951]
[1717726138930,0.69018034,70870.0,70869.0,0.0696951]
[1717726141746,0.377463,70870.0,70869.0,0.07392638]
[1717726141925,0.69021577,70870.0,70869.0,0.07392638]
[1717726142152,0.69021577,70870.0,70869.0,0.0696951]
[1717726142591,0.31561277,70870.0,70869.0,0.24972638]
[1717726142811,0.00286,70870.0,70869.0,0.24972638]
[1717726143040,0.31559226,70870.0,70869.0,0.24972638]
[1717726143255,0.31559226,70870.0,70869.0,0.09392638]
[1717726143475,0.40015744,70870.0,70869.0,0.01342638]
[1717726143710,0.31559226,70870.0,70869.0,0.07392638]
[1717726143930,0.42130035,70870.0,70869.0,0.07392638]
[1717726144843,0.42130035,70870.0,70869.0,0.0696951]
[1717726146406,0.42130035,70870.0,70869.0,0.0091951]
[1717726146628,0.56240335,70870.0,70869.0,0.0091951]
[1717726146840,0.67611419,70870.0,70869.0,0.0091951]
[1717726147055,0.9403735,70870.0,70869.0,0.0091951]
[1717726147298,0.84041419,70870.0,70869.0,0.0091951]
[1717726147944,0.87458227,70870.0,70869.0,0.0091951]
[1717726148169,0.84041419,70870.0,70869.0,0.0091951]
[1717726149835,0.1643,70868.0,70862.0,0.000946]
[1717726150050,0.216111,70866.0,70865.0,0.0605]
[1717726150275,0.141115,70864.0,70862.0,0.061446]
[1717726150476,0.41842739,70863.0,70862.0,0.061446]
[1717726151154,0.31273226,70863.0,70862.0,0.061446]
[1717726152212,0.31273226,70863.0,70862.0,0.064446]
[1717726152726,0.31273226,70863.0,70862.0,0.061446]
[1717726153161,0.39725986,70863.0,70862.0,0.061446]
[1717726153569,0.39925986,70863.0,70862.0,0.061446]
[1717726153841,0.39925986,70863.0,70862.0,0.08567728]
[1717726154052,0.39925986,70863.0,70862.0,0.06567728]
[1717726154258,0.39725986,70863.0,70862.0,0.08567728]
[1717726155112,0.39825986,70863.0,70862.0,0.08567728]
[1717726155291,0.39825986,70863.0,70862.0,0.06567728]
[1717726155535,0.39825986,70863.0,70862.0,0.061446]
[1717726155758,0.39925986,70863.0,70862.0,0.065446]
[1717726155969,0.39925986,70863.0,70862.0,0.06967728]
[1717726156196,0.39925986,70863.0,70862.0,0.065446]
[1717726156668,0.31473226,70863.0,70862.0,0.065446]
[1717726156877,0.31473226,70863.0,70862.0,0.06967728]
[1717726157083,0.31478243,70863.0,70862.0,0.06967728]
[1717726157738,0.31478243,70863.0,70862.0,0.08967728]
[1717726158577,0.06537507,70863.0,70862.0,0.08967728]
[1717726159029,0.002,70863.0,70862.0,0.08967728]
[1717726159448,0.06537507,70863.0,70862.0,0.08967728]
[1717726159653,0.002,70863.0,70862.0,0.08967728]
[1717726161142,0.06537507,70863.0,70862.0,0.08967728]
[1717726161372,0.002,70863.0,70862.0,0.08967728]
[1717726161585,0.06537507,70863.0,70862.0,0.08967728]
[1717726162202,0.06537507,70863.0,70862.0,0.065446]
[1717726162417,0.06537507,70863.0,70862.0,0.06967728]
[1717726162592,0.06537507,70863.0,70862.0,0.08967728]
[1717726165554,0.002,70863.0,70862.0,0.08967728]
[1717726169751,0.002,70863.0,70862.0,0.065446]
[1717726169960,0.002,70863.0,70862.0,0.06967728]
[1717726170399,0.002,70863.0,70862.0,0.08967728]
[1717726173008,0.002,70863.0,70862.0,0.065446]
[1717726173221,0.002,70863.0,70862.0,0.08967728]
[1717726175168,0.06536793,70863.0,70862.0,0.08967728]
[1717726175727,0.06536793,70863.0,70862.0,0.06967728]
[1717726175928,0.06536793,70863.0,70862.0,0.08967728]
[1717726177303,0.002,70863.0,70862.0,0.08967728]